fUST/lending_fUST_20241024
["ID","MTS","AMOUNT","RATE_DAILY","PERIOD"]
[340717636,1729704653779,-1000.0,0.00024657,17]
[340717637,1729704653789,-1590.0,0.00024657,2]
[340717638,1729704653798,-250.78543796,0.00024657,2]
[340717639,1729704653807,-229.64633423,0.00024657,2]
[340717640,1729704653816,-641.33647549,0.00024657,2]
[340717641,1729704653826,-500.0,0.00024657,2]
[340717642,1729704653835,-500.0,0.00024657,2]
[340717643,1729704653844,-200.0,0.00024658,2]
[340717644,1729704653854,-660.0,0.00024658,2]
[340717645,1729704653864,-200.0,0.00024658,15]
[340717646,1729704653873,-380.0,0.00024658,2]
[340717647,1729704653883,-500.0,0.00024686,2]
[340717648,1729704653895,-500.0,0.0002473,2]
[340717649,1729704653904,-1700.0,0.0002473,2]
[340717650,1729704653913,-2538.35516688,0.00024739,2]
[340717651,1729704653922,-1700.0,0.00024866,2]
[340717652,1729704653932,-500.0,0.00024929,2]
[340717653,1729704653941,-500.0,0.00024953,2]
[340717654,1729704653950,-900.0,0.00024971,2]
[340717655,1729704653959,-300.0,0.00025,2]
[340717656,1729704653969,-300.0,0.00025,2]
[340717657,1729704653979,-1036.43142607,0.00025,2]
[340717658,1729704653987,-1000.0,0.00025,5]
[340717659,1729704653997,-202.70016704,0.00025,2]
[340717660,1729704654005,-164.90111094,0.00025,2]
[340717661,1729704654014,-508.08045359,0.00025,2]
[340717662,1729704654023,-345.44014088,0.00025,2]
[340717663,1729704654031,-824.80115066,0.00025,2]
[340717664,1729704654040,-472860.52511085,0.00025,2]
[340717665,1729704654456,-163550.62966013,0.00025,2]
[340717668,1729704955941,1000.0,0.00011,2]
[340717669,1729705130018,152.18,0.0002,120]
[340717836,1729705838730,-250.0,0.00013699,2]
[340717838,1729705838740,-324.9,0.00013973,2]
[340717840,1729705838750,-310.34657141,0.000172,2]
[340718056,1729705840958,-21.46342859,0.000172,2]
[340718058,1729705840968,-1804.0,0.00018481,2]
[340718060,1729705840978,-1154.0,0.00018481,2]
[340718062,1729705840988,-500.0,0.00019456,3]
[340718064,1729705840998,-500.0,0.00019465,3]
[340718066,1729705841007,-500.0,0.00019474,3]
[340718067,1729705841017,-500.0,0.00019483,3]
[340718069,1729705841026,-500.0,0.00019491,3]
[340718071,1729705841035,-300.0,0.00019499,2]
[340718073,1729705841046,-500.0,0.000195,3]
[340718075,1729705841055,-500.0,0.00019509,3]
[340718077,1729705841065,-500.0,0.00019518,3]
[340718079,1729705841074,-500.0,0.00019527,3]
[340718081,1729705841083,-500.0,0.00019535,3]
[340718083,1729705841093,-151.54242915,0.0002,2]
[340718085,1729705841102,-250.0,0.00020187,2]
[340718087,1729705841111,-324.9,0.00020447,2]
[340718089,1729705841121,-351.51133,0.00020914,2]
[340718091,1729705841130,-502.66422629,0.00020967,2]
[340718093,1729705841140,-420.0,0.00021243,2]
[340718095,1729705841149,-160.633,0.00021911,2]
[340718097,1729705841159,-166.666666,0.00021918,2]
[340718100,1729705841168,-166.666666,0.00022431,2]
[340718102,1729705841177,-166.666666,0.00022944,2]
[340718104,1729705841186,-282.0,0.00023,2]
[340718106,1729705841195,-200.0,0.00023,2]
[340718108,1729705841205,-587.0,0.00023143,2]
[340718110,1729705841214,-282.0,0.00023288,2]
[340718112,1729705841223,-166.666666,0.00023456,2]
[340718114,1729705841232,-500.0,0.0002375,2]
[340718116,1729705841242,-166.666666,0.00023969,2]
[340718118,1729705841251,-282.0,0.00024164,2]
[340718120,1729705841261,-821.02989,0.0002425,2]
[340718122,1729705841271,-166.666666,0.00024482,2]
[340718124,1729705841280,-995.43,0.000246,7]
[340718126,1729705841290,-660.0,0.00024658,2]
[340718128,1729705841301,-200.0,0.00024658,15]
[340718130,1729705841311,-380.0,0.00024658,2]
[340718132,1729705841320,-909.26366919,0.00024751,10]
[340718134,1729705841330,-151.05957798,0.00024763,2]
[340718135,1729705841339,-909.26366919,0.00024776,10]
[340718137,1729705841349,-1000.0,0.00024829,7]
[340718139,1729705841359,-174.69303719,0.0002483,3]
[340718141,1729705841368,-156.0,0.0002488,2]
[340718143,1729705841377,-278.0,0.00024932,2]
[340718145,1729705841387,-504.0,0.00024932,2]
[340718147,1729705841396,-500.0,0.00024939,2]
[340718149,1729705841405,-196.52974229,0.00024939,2]
[340718151,1729705841415,-500.0,0.00024939,2]
[340718153,1729705841424,-500.0,0.00024939,2]
[340718155,1729705841434,-550.0450622,0.00024939,2]
[340718157,1729705841443,-500.0,0.00024939,2]
[340718159,1729705841452,-649.75638866,0.00024939,2]
[340718161,1729705841462,-66404.41,0.0002494,10]
[340718163,1729705841474,-55337.01,0.0002494,10]
[340718165,1729705841485,-225.12576511,0.00024949,2]
[340718167,1729705841494,-79685.3,0.0002495,10]
[340718169,1729705841503,-211.82828933,0.00024959,2]
[340718171,1729705841513,-18564.979356,0.0002496,3]
[340718173,1729705841523,-50544.4725304,0.0002496,3]
[340718175,1729705841534,-51036.7,0.0002496,10]
[340718177,1729705841546,-207.1,0.00024963,3]
[340718179,1729705841556,-18564.979356,0.0002497,3]
[340718181,1729705841567,-50544.4725304,0.0002497,3]
[340718183,1729705841576,-500.0,0.00024973,2]
[340718185,1729705841586,-501.47420076,0.00024973,2]
[340718187,1729705841594,-502.6661399,0.00024973,2]
[340718189,1729705841604,-256.21798686,0.00024973,2]
[340718191,1729705841614,-500.0,0.00024973,2]
[340718194,1729705841623,-500.0,0.00024973,2]
[340718196,1729705841633,-500.0,0.00024973,2]
[340718198,1729705841642,-500.0,0.00024973,2]
[340718200,1729705841651,-668.15200357,0.0002498,2]
[340718202,1729705841661,-9282.48967799,0.0002498,3]
[340718204,1729705841670,-25272.2362652,0.0002498,3]
[340718206,1729705841679,-600.0,0.00024989,2]
[340718208,1729705841689,-5918.56704671,0.0002499,3]
[340718273,1729705843668,-264.07534799,0.000172,2]
[340718287,1729705846629,-36.69465201,0.000172,2]
[340718288,1729705846640,-902.32,0.000246,7]
[340718289,1729705846650,-59058.86069919,0.0002499,3]
[340718290,1729705846660,-90384.03023131,0.0002499,3]
[340718361,1729707031831,-250.0,0.00013699,2]
[340718363,1729707031844,-292.41,0.00013973,2]
[340718365,1729707031854,-250.0,0.00020187,2]
[340718367,1729707031864,-292.41,0.00020447,2]
[340718369,1729707031875,-166.666666,0.0002297,2]
[340718371,1729707031885,-166.666666,0.00023596,2]
[340718375,1729707031895,-166.666666,0.00024222,2]
[340718377,1729707031904,-909.26366919,0.00024592,10]
[340718379,1729707031916,-909.27276364,0.00024592,10]
[340718381,1729707031926,-236.33,0.000246,7]
[340718383,1729707031939,-200.0,0.00024658,15]
[340718385,1729707031949,-660.0,0.00024658,2]
[340718388,1729707031958,-312.3308558,0.00024755,2]
[340718390,1729707031968,-151.05957798,0.00024763,2]
[340718392,1729707031977,-200.0,0.00024836,10]
[340718394,1729707031987,-300.0,0.00024836,2]
[340718396,1729707031997,-514.36411265,0.00024837,10]
[340718398,1729707032010,-394.89955654,0.00024837,10]
[340718400,1729707032020,-909.27276364,0.00024837,10]
[340718402,1729707032029,-87.972998,0.00024848,2]
[340718893,1729707037871,-78.693668,0.00024848,2]
[340718895,1729707037883,-170.88802608,0.0002487,3]
[340718898,1729707037895,-675.071834,0.0002488,2]
[340718900,1729707037905,-437.328166,0.000249,2]
[340718902,1729707037916,-601.33680324,0.000249,2]
[340718904,1729707037926,-177.94877964,0.0002494,2]
[340718906,1729707037935,-303.86,0.0002495,3]
[340718908,1729707037950,-151.93,0.0002495,3]
[340718910,1729707037960,-455.81,0.0002495,3]
[340718912,1729707037969,-100.63884982,0.00024959,7]
[340718916,1729707037988,-899.36115018,0.00024959,7]
[340718918,1729707037998,-586.56182096,0.00024959,2]
[340718920,1729707038008,-211.82828933,0.0002496,2]
[340718922,1729707038018,-4832.63264464,0.0002496,3]
[340718924,1729707038030,-6068.54320545,0.0002496,3]
[340718926,1729707038042,-493.4,0.0002496,3]
[340718929,1729707038060,-1242.05477941,0.0002496,3]
[340718931,1729707038069,-12636.6306295,0.0002496,3]
[340718933,1729707038079,-157.58803558,0.00024969,2]
[340718935,1729707038088,-160.633,0.0002497,8]
[340718938,1729707038098,-4272.71776347,0.0002497,3]
[340718992,1729707039861,-4282.69148797,0.0002497,3]
[340718993,1729707039875,-672.5,0.0002497,3]
[340718994,1729707039886,-28681.98263706,0.0002497,3]
[340718995,1729707039895,-15814.82401492,0.0002497,3]
[340718996,1729707039907,-6986.84384687,0.0002497,3]
[340718997,1729707039920,-1512.81684643,0.0002497,3]
[340718998,1729707039932,-978.168932,0.0002497,3]
[340718999,1729707039945,-781.14503198,0.0002497,3]
[340719000,1729707039954,-1828.32496802,0.0002498,3]
[340719001,1729707039965,-48718.19754998,0.0002498,3]
[340719002,1729707039974,-47232.19910285,0.0002498,3]
[340719003,1729707040062,-4915.39824155,0.0002498,3]
[340719004,1729707040072,-600.0,0.00024989,2]
[340719005,1729707040081,-12636.6306295,0.0002499,3]
[340719006,1729707040091,-3267.37,0.0002499,30]
[340719007,1729707040100,-44231.60112903,0.0002499,3]
[340719069,1729707042840,-297.45124018,0.0002499,3]
[340719072,1729707042852,-4366.555,0.0002499,3]
[340719074,1729707042868,-3722.42302215,0.0002499,3]
[340719077,1729707042880,-612.8933849,0.0002499,3]
[340719079,1729707042892,-1963.37596996,0.0002499,3]
[340719086,1729707042951,-1025.4455864,0.0002499,3]
[340719443,1729707046105,-48448.79,0.0002498,10]
[340719445,1729707046115,-19600.03844448,0.0002499,3]
[340719447,1729707046125,-27715.2799818,0.0002499,3]
[340719449,1729707046137,-6072.0055767,0.0002499,3]
[340719451,1729707046148,-122655.5064745,0.0002499,3]
[340719453,1729707046159,-3034.87990318,0.00024999,2]
[340719455,1729707046168,-9038.97931365,0.00025,2]
[340719457,1729707046178,-6006.39382238,0.00025,2]
[340719459,1729707046187,-184024.79139903,0.00025,2]
[340719461,1729707046198,-7479.35418424,0.00025,2]
[340719463,1729707046208,-56737.1963062,0.00025,2]
[340719465,1729707046218,-10364.0,0.00025,2]
[340719467,1729707046228,-300.0,0.00025,2]
[340719469,1729707046239,-300.0,0.00025,2]
[340719471,1729707046249,-300.0,0.00025,2]
[340719472,1729707046259,-300.0,0.00025,2]
[340719474,1729707046270,-300.0,0.00025,2]
[340719475,1729707046280,-2000.0,0.00025,7]
[340719476,1729707046290,-2000.0,0.00025,4]
[340719477,1729707046300,-11699.39681007,0.00025,15]
[340719478,1729707046311,-200.0,0.00025,7]
[340719479,1729707046320,-5000.0,0.00025,2]
[340719480,1729707046330,-257.4,0.00025,2]
[340719481,1729707046339,-300.0,0.00025,2]
[340719482,1729707046348,-300.0,0.00025,2]
[340719483,1729707046358,-300.0,0.00025,2]
[340719484,1729707046367,-300.0,0.00025,2]
[340719485,1729707046376,-300.0,0.00025,2]
[340719486,1729707046386,-300.0,0.00025,2]
[340719487,1729707046396,-300.0,0.00025,2]
[340719488,1729707046406,-257.4,0.00025,2]
[340719489,1729707046416,-300.0,0.00025,2]
[340719490,1729707046426,-300.0,0.00025,2]
[340719491,1729707046437,-300.0,0.00025,2]
[340719492,1729707046449,-300.0,0.00025,2]
[340719493,1729707046460,-300.0,0.00025,2]
[340719494,1729707046471,-300.0,0.00025,2]
[340719495,1729707046480,-300.0,0.00025,2]
[340719496,1729707046491,-257.4,0.00025,2]
[340719497,1729707046501,-300.0,0.00025,2]
[340719498,1729707046510,-300.0,0.00025,2]
[340719499,1729707046519,-300.0,0.00025,2]
[340719500,1729707046528,-300.0,0.00025,2]
[340719501,1729707046538,-300.0,0.00025,2]
[340719502,1729707046548,-300.0,0.00025,2]
[340719503,1729707046558,-300.0,0.00025,2]
[340719504,1729707046567,-257.399999,0.00025,2]
[340719505,1729707046577,-8107.46,0.00025,2]
[340719506,1729707046587,-155.0,0.00025,4]
[340719507,1729707046597,-1000.0,0.00025,120]
[340719508,1729707046607,-150.83190295,0.00025,30]
[340719509,1729707046616,-278.0,0.00025,2]
[340719511,1729707046625,-300.0,0.00025,2]
[340719513,1729707046635,-300.0,0.00025,2]
[340719515,1729707046644,-201.0,0.00025,2]
[340719517,1729707046654,-504.0,0.00025,2]
[340719519,1729707046664,-500.0,0.00025,2]
[340719521,1729707046674,-500.0,0.00025,2]
[340719523,1729707046683,-500.0,0.00025,2]
[340719525,1729707046695,-510.74743622,0.00025,2]
[340719527,1729707046704,-500.0,0.00025,2]
[340719529,1729707046713,-507.90766581,0.00025,30]
[340719531,1729707046722,-500.0,0.00025,30]
[340719533,1729707046732,-500.0,0.00025,30]
[340719535,1729707046742,-549.60048951,0.00025,30]
[340719537,1729707046752,-500.0,0.00025,2]
[340719539,1729707046761,-503.79862443,0.00025,30]
[340719541,1729707046771,-500.0,0.00025,30]
[340719543,1729707046780,-500.0,0.00025,30]
[340719545,1729707046790,-500.0,0.00025,30]
[340719547,1729707046799,-500.0,0.00025,30]
[340719548,1729707046809,-500.0,0.00025,30]
[340719550,1729707046819,-526.83621041,0.00025,30]
[340719553,1729707046829,-500.0,0.00025,30]
[340719555,1729707046843,-500.0,0.00025,30]
[340719557,1729707046852,-500.0,0.00025,30]
[340719559,1729707046862,-500.0,0.00025,30]
[340719561,1729707046872,-500.0,0.00025,30]
[340719562,1729707046882,-500.0,0.00025,30]
[340719565,1729707046891,-500.0,0.00025,30]
[340719566,1729707046901,-500.0,0.00025,30]
[340719568,1729707046910,-500.0,0.00025,30]
[340719571,1729707046920,-500.0,0.00025,30]
[340719573,1729707046930,-500.0,0.00025,30]
[340719575,1729707046939,-500.0,0.00025,30]
[340719576,1729707046952,-500.0,0.00025,30]
[340719578,1729707046961,-945.79613716,0.00025,30]
[340719580,1729707046971,-500.0,0.00025,30]
[340719582,1729707046980,-500.0,0.00025,30]
[340719583,1729707046990,-500.0,0.00025,30]
[340719584,1729707046999,-500.0,0.00025,30]
[340719585,1729707047009,-500.0,0.00025,30]
[340719586,1729707047019,-967.1260888,0.00025,30]
[340719587,1729707047029,-1391.0,0.00025,2]
[340719588,1729707047040,-12636.6306295,0.0002506,3]
[340719589,1729707047050,-602.41497244,0.00025073,2]
[340719590,1729707047060,-197.45155391,0.00025073,2]
[340719591,1729707047071,-500.0,0.00025073,2]
[340719592,1729707047081,-500.0,0.00025073,2]
[340719593,1729707047091,-501.41969194,0.00025073,2]
[340719594,1729707047100,-500.0,0.00025073,2]
[340719595,1729707047110,-501.52397287,0.00025073,2]
[340719596,1729707047120,-504.00044082,0.00025073,2]
[340719597,1729707047130,-500.0,0.00025073,2]
[340719598,1729707047140,-500.0,0.00025073,2]
[340719599,1729707047149,-500.0,0.00025073,2]
[340719600,1729707047159,-160.05120095,0.00025073,2]
[340719601,1729707047169,-1060.81822425,0.00025083,12]
[340719602,1729707047179,-315459.6573182,0.0002509,2]
[340719603,1729707047188,-151.0,0.0002509,7]
[340719604,1729707047201,-151.0,0.0002509,7]
[340719605,1729707047211,-170.00336,0.0002509,7]
[340719606,1729707047221,-170.00336,0.0002509,7]
[340719607,1729707047230,-151.0,0.0002509,7]
[340719608,1729707047240,-151.0,0.0002509,7]
[340719609,1729707047251,-151.0,0.0002509,7]
[340719610,1729707047262,-151.0,0.0002509,7]
[340719611,1729707047272,-151.0,0.0002509,7]
[340719612,1729707047282,-151.0,0.0002509,7]
[340719613,1729707047293,-151.0,0.0002509,7]
[340719614,1729707047303,-151.0,0.0002509,7]
[340719615,1729707047313,-151.0,0.0002509,7]
[340719616,1729707047323,-151.0,0.0002509,7]
[340719617,1729707047334,-1063.603549,0.0002509,7]
[340719618,1729707047344,-1063.603549,0.0002509,7]
[340719619,1729707047354,-10000.0,0.0002509,7]
[340719620,1729707047367,-10000.0,0.0002509,7]
[340719621,1729707047376,-10000.0,0.0002509,7]
[340719622,1729707047386,-10000.0,0.0002509,7]
[340719623,1729707047395,-158.52288546,0.000251,10]
[340719624,1729707047404,-504.0,0.00025205,2]
[340719625,1729707047414,-1060.81822425,0.00025329,12]
[340719626,1729707047423,-286.0,0.00025373,2]
[340719627,1729707047433,-400.0,0.00025469,3]
[340719628,1729707047444,-166.666666,0.00025475,2]
[340719629,1729707047453,-504.0,0.00025479,2]
[340719630,1729707047463,-1000.0,0.00025507,9]
[340719631,1729707047473,-1060.81822425,0.00025575,12]
[340719632,1729707047483,-504.0,0.00025753,2]
[340719633,1729707047492,-1060.81822425,0.00025821,12]
[340719634,1729707047502,-278.0,0.0002589,2]
[340719635,1729707047512,-201.0,0.0002589,2]
[340719636,1729707047522,-504.0,0.0002589,2]
[340719637,1729707047531,-526.2708554,0.00026,2]
[340719638,1729707047540,-5000.0,0.00026,2]
[340719639,1729707047550,-504.0,0.00026027,2]
[340719640,1729707047560,-1000.0,0.00026055,11]
[340719641,1729707047569,-1212.36368486,0.00026067,14]
[340719642,1729707047579,-166.666666,0.00026101,2]
[340719643,1729707047588,-319.049168,0.00026313,14]
[340719644,1729707047598,-607.72,0.0002632,3]
[340719645,1729707047608,-303.86,0.0002632,3]
[340719646,1729707047618,-7458.94652043,0.0002649,2]
[340719647,1729707047628,-1000.0,0.00026603,13]
[340719648,1729707047638,-250.0,0.00026676,2]
[340719649,1729707047647,-601.3368032,0.00026841,2]
[340719650,1729707047657,-420.0,0.0002691,2]
[340719651,1729707047667,-292.41,0.00026921,2]
[340719652,1729707047676,-504.0,0.00026926,2]
[340719653,1729707047686,-1000.0,0.00027,2]
[340719654,1729707047897,-1000.0,0.00027,7]
[340719655,1729707047908,-300.0,0.00027,120]
[340719656,1729707047918,-1000.0,0.00027,120]
[340719657,1729707047928,-282.0,0.00027064,2]
[340719658,1729707047938,-1000.0,0.00027151,15]
[340719659,1729707047947,-282.0,0.00027185,2]
[340719660,1729707047956,-519.0,0.00027185,2]
[340719661,1729707047966,-292.07144861,0.0002732,15]
[340719662,1729707047976,-500.0,0.00027397,2]
[340719663,1729707047985,-500.0,0.00027397,2]
[340719664,1729707047995,-500.0,0.00027397,2]
[340719665,1729707048005,-500.0,0.00027397,2]
[340719666,1729707048015,-500.0,0.00027397,2]
[340719667,1729707048025,-500.0,0.00027397,2]
[340719668,1729707048034,-500.0,0.00027397,2]
[340719669,1729707048043,-500.0,0.00027397,2]
[340719670,1729707048054,-500.0,0.00027397,2]
[340719671,1729707048063,-440.58285824,0.00027397,2]
[340719672,1729707048073,-221.01923284,0.00027397,2]
[340719673,1729707048084,-44131.60612661,0.000275,2]
[340719674,1729707048095,-2741.51290801,0.000275,30]
[340719675,1729707048104,-500.0,0.00027592,10]
[340719676,1729707048115,-500.0,0.00027592,10]
[340719677,1729707048126,-500.0,0.00027592,10]
[340719678,1729707048135,-500.0,0.00027592,10]
[340719679,1729707048146,-500.0,0.00027592,10]
[340719680,1729707048155,-500.0,0.00027592,10]
[340719681,1729707048165,-190.0,0.00027592,10]
[340719682,1729707048176,-500.0,0.00027592,10]
[340719683,1729707048185,-500.0,0.00027592,10]
[340719684,1729707048197,-500.0,0.00027592,10]
[340719685,1729707048208,-500.0,0.00027592,10]
[340719686,1729707048218,-500.0,0.00027592,10]
[340719687,1729707048229,-500.0,0.00027592,10]
[340719688,1729707048239,-500.0,0.00027592,10]
[340719689,1729707048249,-500.71273095,0.00027592,10]
[340719690,1729707048258,-500.0,0.00027592,10]
[340719691,1729707048269,-500.0,0.00027592,10]
[340719692,1729707048279,-500.71809103,0.00027592,10]
[340719693,1729707048288,-500.0,0.00027592,10]
[340719694,1729707048298,-502.71609322,0.00027592,10]
[340719695,1729707048308,-500.0,0.00027592,10]
[340719696,1729707048318,-500.0,0.00027592,10]
[340719697,1729707048328,-500.0,0.00027592,10]
[340719698,1729707048337,-500.0,0.00027592,10]
[340719699,1729707048347,-500.0,0.00027592,10]
[340719700,1729707048356,-500.0,0.00027592,10]
[340719701,1729707048365,-500.0,0.00027592,10]
[340719702,1729707048375,-500.0,0.00027592,10]
[340719703,1729707048385,-500.0,0.00027592,10]
[340719704,1729707048394,-500.0,0.00027592,10]
[340719705,1729707048404,-500.0,0.00027592,10]
[340719706,1729707048414,-500.0,0.00027592,10]
[340719707,1729707048424,-500.0,0.00027592,10]
[340719708,1729707048433,-500.0,0.00027592,10]
[340719709,1729707048443,-500.0,0.00027592,10]
[340719710,1729707048453,-500.0,0.00027592,10]
[340719711,1729707048464,-500.0,0.00027592,10]
[340719712,1729707048474,-500.0,0.00027592,10]
[340719713,1729707048484,-500.0,0.00027592,10]
[340719714,1729707048494,-500.0,0.00027592,10]
[340719715,1729707048503,-500.0,0.00027592,10]
[340719716,1729707048513,-506.45342119,0.0002766,5]
[340719717,1729707048522,-500.0,0.00027725,5]
[340719718,1729707048532,-480.65014284,0.00027725,5]
[340719719,1729707048541,-600.0,0.00027729,4]
[340719720,1729707048551,-500.0,0.00027733,5]
[340719721,1729707048560,-500.0,0.0002774,2]
[340719722,1729707048571,-673.94809025,0.0002774,2]
[340719723,1729707048580,-1391.0,0.0002774,2]
[340719724,1729707048590,-156.0,0.000278,120]
[340719725,1729707048599,-504.0,0.00027962,2]
[340719726,1729707048609,-504.0,0.00027962,2]
[340719727,1729707048619,-31830.56571027,0.0002799,2]
[340719728,1729707048629,-1160.8238303,0.0002799,7]
[340719729,1729707048638,-1000.0,0.00027999,5]
[340719730,1729707048648,-1000.0,0.00028,2]
[340719731,1729707048658,-160.0,0.00028,2]
[340719732,1729707048668,-6230.56093739,0.00028,2]
[340719733,1729707048677,-286.68797281,0.00028,2]
[340719734,1729707048687,-408.64634277,0.00028,14]
[340719735,1729707048696,-300.0,0.00028,120]
[340719736,1729707048706,-1000.0,0.00028007,5]
[340719737,1729707048715,-351.51133,0.00028138,2]
[340719738,1729707048726,-1500.0,0.000284,5]
[340719739,1729707048737,-1000.0,0.00028408,5]
[340719740,1729707048747,-504.0,0.00028738,2]
[340719741,1729707048757,-282.0,0.00028756,2]
[340719742,1729707048767,-601.3368032,0.00028781,2]
[340719743,1729707048776,-4508.64790146,0.000289,2]
[340719744,1729707048787,-151.0,0.0002899,7]
[340719745,1729707048796,-282.0,0.00028997,2]
[340719746,1729707048807,-278.0,0.00028997,2]
[340719747,1729707048817,-504.0,0.00028997,2]
[340719748,1729707048827,-1000.0,0.00029,2]
[340719749,1729707048839,-857.20085012,0.00029,2]
[340719750,1729707048848,-6648.68412827,0.00029,3]
[340719751,1729707048858,-500.0,0.00029,12]
[340719752,1729707048867,-2900.0,0.00029,10]
[340719753,1729707048876,-4610.6008234,0.00029,30]
[340719754,1729707048886,-1000.0,0.00029,120]
[340719755,1729707048895,-151.0,0.00029041,7]
[340719756,1729707048904,-151.0,0.00029041,7]
[340719757,1729707048914,-1234.0,0.00029041,120]
[340719758,1729707048925,-587.0,0.00029158,2]
[340719759,1729707048934,-191.96318138,0.000295,2]
[340719760,1729707048944,-1000.0,0.000295,7]
[340719761,1729707048953,-1000.00327844,0.000295,2]
[340719762,1729707048964,-504.0,0.00029515,2]
[340719763,1729707048973,-432.33000106,0.00029973,5]
[340719764,1729707048982,-500.0,0.00029973,5]
[340719765,1729707048991,-151.0,0.0002999,7]
[340719766,1729707049001,-170.00336,0.0002999,7]
[340719767,1729707049010,-170.00336,0.0002999,7]
[340719768,1729707049021,-151.0,0.0002999,7]
[340719769,1729707049030,-151.0,0.0002999,7]
[340719770,1729707049041,-238.168373,0.0002999,7]
[340719771,1729707049050,-151.0,0.0002999,7]
[340719772,1729707049060,-151.0,0.0002999,7]
[340719773,1729707049070,-151.0,0.0002999,7]
[340719774,1729707049079,-151.0,0.0002999,7]
[340719775,1729707049089,-151.0,0.0002999,7]
[340719776,1729707049098,-160.0,0.00029999,10]
[340719777,1729707049108,-151.0,0.00029999,7]
[340719778,1729707049117,-151.0,0.00029999,7]
[340719779,1729707049127,-151.0,0.00029999,7]
[340719780,1729707049136,-151.0,0.00029999,7]
[340719781,1729707049146,-151.0,0.00029999,7]
[340719782,1729707049156,-160.0,0.00029999,10]
[340719783,1729707049165,-160.0,0.00029999,10]
[340719784,1729707049175,-160.0,0.00029999,10]
[340719785,1729707049184,-12537.52493596,0.0003,7]
[340719786,1729707049441,-657.1,0.0003,7]
[340719787,1729707049462,-6858.27733709,0.0003,7]
[340719788,1729707049473,-9660.26318862,0.0003,7]
[340719872,1729708232201,-250.0,0.00013699,2]
[340719874,1729708232211,-248.5485,0.00013973,2]
[340719876,1729708232222,-154.9515,0.000176,2]
[340719878,1729708232235,-307.43132332,0.000176,2]
[340719882,1729708232257,-1547.02298016,0.000176,2]
[340719884,1729708232266,-1479.81390962,0.00018,2]
[340720406,1729708238039,-641.46695886,0.00018,2]
[340720407,1729708238054,-344.68009583,0.00018,2]
[340720408,1729708238065,-1154.0,0.00019714,2]
[340720409,1729708238075,-300.0,0.00019999,2]
[340720410,1729708238084,-300.0,0.00019999,2]
[340720411,1729708238093,-211.82828933,0.0002,2]
[340720412,1729708238102,-1808.59233118,0.0002,2]
[340720413,1729708238116,-1844.55920372,0.0002,2]
[340720414,1729708238129,-4976.57753637,0.0002,2]
[340720415,1729708238140,-3036.69877653,0.0002,2]
[340720416,1729708238155,-406.13354335,0.0002,2]
[340720427,1729708240054,-12624.84074125,0.0002,2]
[340720428,1729708240068,-250.0,0.00020187,2]
[340720429,1729708240080,-248.5485,0.00020447,2]
[340720430,1729708240092,-420.0,0.00021777,2]
[340720431,1729708240106,-287.0,0.00021999,2]
[340720432,1729708240121,-999.999999,0.00022,2]
[340720433,1729708240134,-166.666666,0.00022137,2]
[340720434,1729708240145,-3715.6637093,0.00022356,2]